[Event "Serbian-ch Semifinal Women 2024"]
[Site "Paracin"]
[Date "2024.02.10"]
[Round "8.1"]
[White "Jovanovic, Anja"]
[Black "Srdanovic, Jovana"]
[Result "0-1"]
[ECO "B13"]
[WhiteElo "1910"]
[BlackElo "2121"]
[Annotator "NA COMBH"]
[PlyCount "76"]
[EventDate "2024.02.04"]
[EventType "swiss"]
[EventCountry "SRB"]
[SourceTitle "playchess.com"]
[Source "ChessBase"]
[SourceQuality "1"]
[TimeControl "40/5400+30:1800+30"]

1. e4 {[%emt 0:00:03]} c6 {[%emt 0:04:56]} 2. d4 {[%emt 0:00:06]} d5 {[%emt 0:00:06]} 3. exd5 {[%emt 0:00:06]} cxd5 {[%emt 0:00:08]} 4. Bd3 {[%emt 0:00:05]} Nc6 {[%emt 0:00:08]} 5. c3 {[%emt 0:00:07]} Qc7 {[%emt 0:00:07]} 6. Ne2 {[%emt 0:01:21]} Bg4 {[%emt 0:00:31]} 7. O-O {[%emt 0:00:44]} Nf6 {[%emt 0:01:19]} 8. f3 {[%emt 0:02:51]} Bd7 {[%emt 0:00:26]} 9. Qe1 {[%emt 0:10:26]} g6 {[%emt 0:07:58]} 10. Qh4 {[%emt 0:05:36]} h6 {[%emt 0:00:44]} 11. Na3 {[%emt 0:05:44]} a6 {[%emt 0:01:37]} 12. Nc2 {[%emt 0:01:12]} Bg7 {[%emt 0:01:28]} 13. Kh1 {[%emt 0:07:43]} Nd8 {[%emt 0:07:14]} 14. a4 {[%emt 0:06:42]} Ne6 {[%emt 0:02:50]} 15. f4 {[%emt 0:11:07]} Nd8 {[%emt 0:08:48]} 16. Ne1 {[%emt 0:04:39]} Ne4 {[%emt 0:04:50]} 17. Bxe4 {[%emt 0:04:58]} dxe4 {[%emt 0:00:08]} 18. Nc2 {[%emt 0:03:04]} f5 {[%emt 0:02:38]} 19. Ne3 {[%emt 0:01:45]} e6 {[%emt 0:12:36]} 20. g4 {[%emt 0:10:51]} O-O {[%emt 0:05:11]} 21. Rg1 {[%emt 0:02:11]} Kh7 {[%emt 0:02:10]} 22. b3 {[%emt 0:01:32]} Bc6 {[%emt 0:05:44]} 23. Ba3 {[%emt 0:01:02]} Re8 {[%emt 0:02:40]} 24. g5 {[%emt 0:03:57]} h5 {[%emt 0:00:43]} 25. Ng3 {[%emt 0:00:35]} Rh8 {[%emt 0:01:09]} 26. Ne2 {[%emt 0:05:07]} b5 {[%emt 0:00:59]} 27. axb5 {[%emt 0:03:31]} axb5 {[%emt 0:00:06]} 28. Bb4 {[%emt 0:01:46]} Nb7 {[%emt 0:00:13]} 29. Rxa8 {[%emt 0:00:32]} Rxa8 {[%emt 0:00:13]} 30. Ng3 {[%emt 0:00:07]} Be8 {[%emt 0:03:43]} 31. d5 {[%emt 0:04:44]} Bxc3 {[%emt 0:13:19]} 32. Nxh5 {[%emt 0:00:30]} gxh5 {[%emt 0:00:16]} 33. g6+ {[%emt 0:00:06]} Bxg6 {[%emt 0:01:52]} 34. Qg3 {[%emt 0:00:12]} Bf7 {[%emt 0:00:48]} 35. dxe6 {[%emt 0:02:21]} Rg8 {[%emt 0:00:19]} 36. Qh4 {[%emt 0:00:34]} Rxg1+ {[%emt 0:00:28]} 37. Kxg1 {[%emt 0:00:01]} Bxb4 {[%emt 0:00:18]} 38. Nxf5 {[%emt 0:01:01]} Qc5+ {[%emt 0:00:20]} 0-1

[Event "Serbian-ch Semifinal Women 2024"]
[Site "Paracin"]
[Date "2024.02.10"]
[Round "8.2"]
[White "Radenkovic, Mila"]
[Black "Stankovic, Andrea"]
[Result "1/2-1/2"]
[ECO "A08"]
[WhiteElo "1741"]
[BlackElo "1714"]
[Annotator "NA COMBH"]
[PlyCount "65"]
[EventDate "2024.02.04"]
[EventType "swiss"]
[EventCountry "SRB"]
[SourceTitle "playchess.com"]
[Source "ChessBase"]
[SourceQuality "1"]
[TimeControl "40/5400+30:1800+30"]

1. Nf3 {[%emt 0:01:51]} e6 {[%emt 0:00:03]} 2. g3 {[%emt 0:00:18]} Nf6 {[%emt 0:00:07]} 3. Bg2 {[%emt 0:00:17]} c5 {[%emt 0:00:07]} 4. d3 {[%emt 0:01:12]} d5 {[%emt 0:01:10]} 5. O-O {[%emt 0:03:30]} Nc6 {[%emt 0:01:46]} 6. Nbd2 {[%emt 0:03:39]} g6 {[%emt 0:03:37]} 7. e4 {[%emt 0:04:27]} Bg7 {[%emt 0:01:36]} 8. c3 {[%emt 0:04:14]} O-O {[%emt 0:04:17]} 9. Re1 {[%emt 0:04:27]} Nd7 {[%emt 0:08:43]} 10. Nf1 {[%emt 0:02:56]} d4 {[%emt 0:09:31]} 11. Qc2 {[%emt 0:01:58]} Rb8 {[%emt 0:10:44]} 12. Bd2 {[%emt 0:02:17]} b5 {[%emt 0:01:46]} 13. h4 {[%emt 0:03:52]} Nb6 {[%emt 0:04:25]} 14. N1h2 {[%emt 0:06:27]} e5 {[%emt 0:00:59]} 15. Bf1 {[%emt 0:03:00]} c4 {[%emt 0:09:48]} 16. cxd4 {[%emt 0:03:32]} Nxd4 {[%emt 0:00:13]} 17. Nxd4 {[%emt 0:04:29]} exd4 {[%emt 0:00:07]} 18. Bf4 {[%emt 0:08:34]} Rb7 {[%emt 0:00:56]} 19. Nf3 {[%emt 0:00:53]} Re8 {[%emt 0:06:48]} 20. Nd2 {[%emt 0:10:27]} Be6 {[%emt 0:02:45]} 21. dxc4 {[%emt 0:12:02]} bxc4 {[%emt 0:04:16]} 22. Nxc4 {[%emt 0:00:06]} Nxc4 {[%emt 0:04:36]} 23. Bxc4 {[%emt 0:00:04]} Bxc4 {[%emt 0:01:05]} 24. Qxc4 {[%emt 0:00:02]} Rxb2 {[%emt 0:00:18]} 25. Rab1 {[%emt 0:00:26]} Rxb1 {[%emt 0:04:23]} 26. Rxb1 {[%emt 0:00:09]} Qe7 {[%emt 0:00:45]} 27. Qd5 {[%emt 0:05:09]} h6 {[%emt 0:03:14]} 28. f3 {[%emt 0:04:21]} Rd8 {[%emt 0:02:54]} 29. Rb7 {[%emt 0:04:16]} Rxd5 {[%emt 0:01:14]} 30. Rxe7 {[%emt 0:00:04]} Ra5 {[%emt 0:00:17]} 31. Re8+ {[%emt 0:02:23]} Kh7 {[%emt 0:00:12]} 32. Re7 {[%emt 0:02:54]} Kg8 {[%emt 0:05:39]} 33. Re8+ {[%emt 0:00:08]} 1/2-1/2

[Event "Serbian-ch Semifinal Women 2024"]
[Site "Paracin"]
[Date "2024.02.11"]
[Round "9.2"]
[White "Tadic, Ana"]
[Black "Radenkovic, Mila"]
[Result "0-1"]
[ECO "B89"]
[WhiteElo "1746"]
[BlackElo "1741"]
[Annotator "NA RC"]
[PlyCount "66"]
[EventDate "2024.02.04"]
[EventType "swiss"]
[EventCountry "SRB"]
[SourceTitle "playchess.com"]
[Source "ChessBase"]
[SourceQuality "1"]
[TimeControl "40/5400+30:1800+30"]

1. e4 {[%emt 0:00:03]} c5 {[%emt 0:00:17]} 2. Nc3 {[%emt 0:00:11]} e6 {[%emt 0:02:15]} 3. Nge2 {[%emt 0:04:54]} d5 {[%emt 0:04:03]} 4. exd5 {[%emt 0:01:39]} exd5 {[%emt 0:00:21]} 5. d4 {[%emt 0:02:10]} Nc6 {[%emt 0:06:34]} 6. Be3 {[%emt 0:11:25]} cxd4 {[%emt 0:03:14]} 7. Nxd4 {[%emt 0:03:48]} Nf6 {[%emt 0:21:46]} 8. Bb5 {[%emt 0:11:33]} Bd7 {[%emt 0:01:46]} 9. O-O {[%emt 0:07:27]} h6 {[%emt 0:03:26]} 10. Qf3 {[%emt 0:07:31]} a6 {[%emt 0:04:22]} 11. Ba4 {[%emt 0:13:49]} Ne5 {[%emt 0:14:18]} 12. Qe2 {[%emt 0:15:08]} Qe7 {[%emt 0:13:20]} 13. Rfe1 {[%emt 0:08:16]} O-O-O {[%emt 0:01:38]} 14. Bxd7+ {[%emt 0:04:25]} Qxd7 {[%emt 0:01:16]} 15. b3 {[%emt 0:01:12]} Bb4 {[%emt 0:02:52]} 16. Na4 {[%emt 0:00:15]} Ba5 {[%emt 0:07:53]} 17. Bd2 {[%emt 0:02:14]} Bc7 {[%emt 0:00:28]} 18. Bf4 {[%emt 0:01:31]} Ng6 {[%emt 0:00:51]} 19. Bxc7 {[%emt 0:00:12]} Qxc7 {[%emt 0:00:10]} 20. Nf5 {[%emt 0:00:37]} Rhe8 {[%emt 0:02:48]} 21. Qd3 {[%emt 0:01:01]} Nf4 {[%emt 0:00:39]} 22. Qf3 {[%emt 0:00:06]} g6 {[%emt 0:02:48]} 23. Nd4 {[%emt 0:00:59]} Ne4 {[%emt 0:02:32]} 24. c4 {[%emt 0:00:54]} Ng5 {[%emt 0:00:21]} 25. Qc3 {[%emt 0:00:44]} dxc4 {[%emt 0:00:49]} 26. bxc4 {[%emt 0:00:19]} Re4 {[%emt 0:01:46]} 27. Rad1 {[%emt 0:01:03]} Kb8 {[%emt 0:00:47]} 28. f3 {[%emt 0:00:29]} Rxe1+ {[%emt 0:00:09]} 29. Rxe1 {[%emt 0:00:01]} Qd7 {[%emt 0:00:25]} 30. g3 {[%emt 0:01:02]} Nfh3+ {[%emt 0:00:05]} 31. Kg2 {[%emt 0:00:04]} Qxd4 {[%emt 0:00:08]} 32. Qxd4 {[%emt 0:00:41]} Rxd4 {[%emt 0:00:01]} 33. Re2 {[%emt 0:00:00]} Rd1 {[%emt 0:00:30]} 0-1

[Event "Serbian-ch Semifinal Women 2024"]
[Site "Paracin"]
[Date "2024.02.11"]
[Round "9.3"]
[White "Grozdanovic, Anastasia"]
[Black "Jovanovic, Anja"]
[Result "1-0"]
[ECO "D31"]
[WhiteElo "2051"]
[BlackElo "1910"]
[Annotator "NA RC"]
[PlyCount "105"]
[EventDate "2024.02.04"]
[EventType "swiss"]
[EventCountry "SRB"]
[SourceTitle "playchess.com"]
[Source "ChessBase"]
[SourceQuality "1"]
[TimeControl "40/5400+30:1800+30"]

1. d4 {[%emt 0:00:03]} d5 {[%emt 0:00:04]} 2. c4 {[%emt 0:00:10]} e6 {[%emt 0:00:06]} 3. Nc3 {[%emt 0:00:06]} h6 {[%emt 0:00:18]} 4. cxd5 {[%emt 0:00:14]} exd5 {[%emt 0:00:09]} 5. Bf4 {[%emt 0:00:17]} c6 {[%emt 0:00:43]} 6. e3 {[%emt 0:00:07]} Bf5 {[%emt 0:04:41]} 7. f3 {[%emt 0:01:58]} Bd6 {[%emt 0:06:04]} 8. Bxd6 {[%emt 0:05:48]} Qxd6 {[%emt 0:00:02]} 9. e4 {[%emt 0:00:20]} Bg6 {[%emt 0:04:32]} 10. exd5 {[%emt 0:04:07]} cxd5 {[%emt 0:06:01]} 11. Qb3 {[%emt 0:03:40]} Nf6 {[%emt 0:06:37]} 12. Qxb7 {[%emt 0:08:52]} O-O {[%emt 0:01:23]} 13. Bb5 {[%emt 0:13:41]} a6 {[%emt 0:15:01]} 14. Ba4 {[%emt 0:05:53]} Nbd7 {[%emt 0:01:17]} 15. Bxd7 {[%emt 0:02:42]} Rab8 {[%emt 0:08:52]} 16. Qc6 {[%emt 0:02:54]} Qxd7 {[%emt 0:04:31]} 17. Qxd7 {[%emt 0:02:37]} Nxd7 {[%emt 0:00:01]} 18. b3 {[%emt 0:04:16]} Rfe8+ {[%emt 0:03:19]} 19. Kd2 {[%emt 0:00:44]} Nf8 {[%emt 0:01:40]} 20. Nge2 {[%emt 0:04:45]} Ne6 {[%emt 0:02:10]} 21. Rad1 {[%emt 0:02:29]} Rbc8 {[%emt 0:04:20]} 22. Rhe1 {[%emt 0:02:03]} Kf8 {[%emt 0:03:03]} 23. Rc1 {[%emt 0:05:01]} Red8 {[%emt 0:10:31]} 24. Na4 {[%emt 0:02:42]} Rxc1 {[%emt 0:01:03]} 25. Rxc1 {[%emt 0:00:07]} Ke7 {[%emt 0:00:09]} 26. Nc5 {[%emt 0:02:41]} Rd6 {[%emt 0:03:05]} 27. Nxe6 {[%emt 0:01:42]} fxe6 {[%emt 0:01:20]} 28. Nf4 {[%emt 0:00:59]} Be8 {[%emt 0:00:37]} 29. Nd3 {[%emt 0:00:33]} Kf6 {[%emt 0:01:39]} 30. Rc7 {[%emt 0:02:01]} Rb6 {[%emt 0:01:12]} 31. Ne5 {[%emt 0:01:28]} a5 {[%emt 0:02:24]} 32. Kc3 {[%emt 0:01:54]} Ra6 {[%emt 0:00:56]} 33. a4 {[%emt 0:02:00]} Ra8 {[%emt 0:02:02]} 34. Nd3 {[%emt 0:01:44]} g6 {[%emt 0:01:31]} 35. Ne5 {[%emt 0:03:29]} Kf5 {[%emt 0:01:16]} 36. Kd2 {[%emt 0:01:59]} Rb8 {[%emt 0:00:28]} 37. Kc3 {[%emt 0:00:50]} Ra8 {[%emt 0:00:07]} 38. Nd3 {[%emt 0:01:18]} Kf6 {[%emt 0:01:26]} 39. Nc5 {[%emt 0:01:26]} e5 {[%emt 0:02:47]} 40. Nd3 {[%emt 0:00:54]} exd4+ {[%emt 0:01:23]} 41. Kxd4 {[%emt 0:30:11]} g5 {[%emt 0:05:07]} 42. Nc5 {[%emt 0:00:00]} Kf5 {[%emt 0:05:25]} 43. Re7 {[%emt 0:00:00]} Kf6 {[%emt 0:03:50]} 44. Re6+ {[%emt 0:00:00]} Kg7 {[%emt 0:00:57]} 45. Ra6 {[%emt 0:00:00]} Rxa6 {[%emt 0:01:47]} 46. Nxa6 {[%emt 0:00:00]} Bf7 {[%emt 0:00:23]} 47. Nc5 {[%emt 0:00:00]} Kf6 {[%emt 0:00:53]} 48. Nb7 {[%emt 0:00:00]} Be8 {[%emt 0:00:15]} 49. Nxa5 {[%emt 0:00:00]} Ke6 {[%emt 0:00:08]} 50. Nb7 {[%emt 0:00:00]} Kd7 {[%emt 0:00:18]} 51. Kxd5 {[%emt 0:00:00]} Bf7+ {[%emt 0:00:08]} 52. Kd4 {[%emt 0:00:00]} Kc6 {[%emt 0:00:19]} 53. Nd8+ {[%emt 0:00:00]} 1-0